[Event "Titled Tuesday Blitz April 05 Early 2022"]
[White "Aaditya Dhingra"]
[Black "Hansen, Eric"]
[WhiteFideId "25678191"]
[BlackFideId "2606771"]
[WhiteElo "1849"]
[BlackElo "2568"]
[Result "0-1"]
[Round "08"]
[TimeControl "180+1"]
[Date "2022.04.05"]
[WhiteClock "0:00:10"]
[BlackClock "0:00:11"]

1. e4 {[%clk 0:02:59]}  c5 {[%clk 0:02:59]} 2. Nf3 {[%clk 0:02:57]}  e6 {[%clk 0:03:00]} 3. b3 {[%clk 0:02:54]}  Nf6 {[%clk 0:02:59]} 4. e5 {[%clk 0:02:53]}  Nd5 {[%clk 0:02:59]} 5. c4 {[%clk 0:02:52]}  Nc7 {[%clk 0:02:58]} 6. Bb2 {[%clk 0:02:52]}  Nc6 {[%clk 0:02:59]} 7. Be2 {[%clk 0:02:51]}  d6 {[%clk 0:02:35]} 8. exd6 {[%clk 0:02:51]}  Bxd6 {[%clk 0:02:35]} 9. O-O {[%clk 0:02:51]}  e5 {[%clk 0:02:35]} 10. Nc3 {[%clk 0:02:41]}  O-O {[%clk 0:02:34]} 11. d3 {[%clk 0:02:33]}  f6 {[%clk 0:02:35]} 12. Nd2 {[%clk 0:02:30]}  Ne6 {[%clk 0:02:34]} 13. Bf3 {[%clk 0:02:26]}  Ncd4 {[%clk 0:02:34]} 14. Bd5 {[%clk 0:02:26]}  Kh8 {[%clk 0:02:33]} 15. Nce4 {[%clk 0:02:17]}  Be7 {[%clk 0:02:28]} 16. Nf3 {[%clk 0:02:09]}  Nc7 {[%clk 0:02:26]} 17. Nc3 {[%clk 0:01:45]}  Rb8 {[%clk 0:02:23]} 18. Nxd4 {[%clk 0:01:43]}  cxd4 {[%clk 0:02:17]} 19. Ne2 {[%clk 0:01:26]}  Nxd5 {[%clk 0:02:17]} 20. cxd5 {[%clk 0:01:27]}  Qxd5 {[%clk 0:02:17]} 21. Rc1 {[%clk 0:01:26]}  Bd7 {[%clk 0:02:15]} 22. f4 {[%clk 0:01:18]}  Bc6 {[%clk 0:02:11]} 23. Rf2 {[%clk 0:01:19]}  Rbd8 {[%clk 0:02:07]} 24. Ng3 {[%clk 0:01:17]}  exf4 {[%clk 0:02:06]} 25. Ne4 {[%clk 0:01:16]}  f5 {[%clk 0:02:06]} 26. Nd2 {[%clk 0:01:15]}  Bf6 {[%clk 0:01:47]} 27. Ba3 {[%clk 0:00:58]}  Rfe8 {[%clk 0:01:45]} 28. Rc5 {[%clk 0:00:59]}  Qe6 {[%clk 0:01:45]} 29. Nf3 {[%clk 0:00:54]}  g5 {[%clk 0:01:34]} 30. Rcc2 {[%clk 0:00:39]}  g4 {[%clk 0:01:32]} 31. Rce2 {[%clk 0:00:39]}  Qd5 {[%clk 0:01:29]} 32. Nd2 {[%clk 0:00:34]}  Bg5 {[%clk 0:01:07]} 33. Nc4 {[%clk 0:00:31]}  Re3 {[%clk 0:01:06]} 34. Nxe3 {[%clk 0:00:25]}  dxe3 {[%clk 0:01:05]} 35. Rf1 {[%clk 0:00:20]}  f3 {[%clk 0:01:05]} 36. Qa1+ {[%clk 0:00:19]}  Kg8 {[%clk 0:01:04]} 37. Rb2 {[%clk 0:00:17]}  Re8 {[%clk 0:00:26]} 38. gxf3 {[%clk 0:00:13]}  gxf3 {[%clk 0:00:25]} 39. h4 {[%clk 0:00:13]}  Bh6 {[%clk 0:00:16]} 40. Rh2 {[%clk 0:00:12]}  e2 {[%clk 0:00:11]} 41. Re1 {[%clk 0:00:10]}  Be3+ {[%clk 0:00:11]} 0-1


[Site "https://www.chess.com"]

[Event "Titled Tuesday Blitz April 05 Early 2022"]
[White "Alboredo, Julia"]
[Black "Iljin, Timofey"]
[WhiteFideId "2124807"]
[BlackFideId "14110180"]
[WhiteElo "2041"]
[BlackElo "2396"]
[Result "0-1"]
[Round "08"]
[TimeControl "180+1"]
[Date "2022.04.05"]
[WhiteClock "0:00:16"]
[BlackClock "0:00:37"]

1. e4 {[%clk 0:03:00]}  d5 {[%clk 0:03:00]} 2. exd5 {[%clk 0:03:00]}  Nf6 {[%clk 0:03:00]} 3. Nc3 {[%clk 0:02:59]}  Nxd5 {[%clk 0:02:58]} 4. Nf3 {[%clk 0:02:47]}  Bg4 {[%clk 0:02:56]} 5. Be2 {[%clk 0:02:45]}  Nf4 {[%clk 0:02:55]} 6. O-O {[%clk 0:02:41]}  Nxe2+ {[%clk 0:02:54]} 7. Qxe2 {[%clk 0:02:39]}  Nc6 {[%clk 0:02:54]} 8. Qe4 {[%clk 0:02:34]}  Qd7 {[%clk 0:02:53]} 9. d3 {[%clk 0:02:29]}  O-O-O {[%clk 0:02:38]} 10. Bf4 {[%clk 0:02:26]}  f6 {[%clk 0:02:35]} 11. h3 {[%clk 0:01:30]}  Bf5 {[%clk 0:01:44]} 12. Qa4 {[%clk 0:01:29]}  e5 {[%clk 0:01:40]} 13. Bh2 {[%clk 0:01:26]}  Bc5 {[%clk 0:01:37]} 14. a3 {[%clk 0:01:23]}  g5 {[%clk 0:01:29]} 15. b4 {[%clk 0:01:20]}  Bb6 {[%clk 0:01:27]} 16. b5 {[%clk 0:01:20]}  Nd4 {[%clk 0:01:13]} 17. Nxd4 {[%clk 0:01:18]}  Bxd4 {[%clk 0:01:13]} 18. Qb4 {[%clk 0:01:07]}  Qd6 {[%clk 0:00:59]} 19. Qb3 {[%clk 0:00:29]}  Be6 {[%clk 0:00:57]} 20. Qb2 {[%clk 0:00:19]}  h5 {[%clk 0:00:43]} 21. a4 {[%clk 0:00:19]}  g4 {[%clk 0:00:40]} 22. h4 {[%clk 0:00:18]}  f5 {[%clk 0:00:40]} 23. Ra3 {[%clk 0:00:17]}  f4 {[%clk 0:00:39]} 24. Ne4 {[%clk 0:00:17]}  Bxb2 {[%clk 0:00:36]} 25. Nxd6+ {[%clk 0:00:16]}  Rxd6 {[%clk 0:00:37]} 0-1


[Site "https://www.chess.com"]

[Event "Titled Tuesday Blitz April 05 Early 2022"]
[White "Antonio, Jorge Carlos"]
[Black "Ciolacu, Alessia-Mihaela"]
[WhiteFideId "113190"]
[BlackFideId "1252640"]
[WhiteElo "2247"]
[BlackElo "1804"]
[Result "0-1"]
[Round "08"]
[TimeControl "180+1"]
[Date "2022.04.05"]
[WhiteClock "0:00:43"]
[BlackClock "0:00:12"]

1. e4 {[%clk 0:03:00]}  c6 {[%clk 0:02:57]} 2. d4 {[%clk 0:03:00]}  d5 {[%clk 0:02:57]} 3. exd5 {[%clk 0:02:58]}  cxd5 {[%clk 0:02:58]} 4. Nf3 {[%clk 0:02:55]}  Nc6 {[%clk 0:02:58]} 5. c4 {[%clk 0:02:50]}  Nf6 {[%clk 0:02:56]} 6. Nc3 {[%clk 0:02:50]}  Be6 {[%clk 0:02:55]} 7. c5 {[%clk 0:02:48]}  Ne4 {[%clk 0:02:51]} 8. Bf4 {[%clk 0:02:45]}  g6 {[%clk 0:02:36]} 9. Qb3 {[%clk 0:02:41]}  Bg7 {[%clk 0:02:23]} 10. Qxb7 {[%clk 0:02:37]}  Nxd4 {[%clk 0:02:12]} 11. Nxd4 {[%clk 0:02:33]}  Bxd4 {[%clk 0:02:12]} 12. Bb5+ {[%clk 0:02:30]}  Kf8 {[%clk 0:02:10]} 13. Nxe4 {[%clk 0:02:24]}  dxe4 {[%clk 0:02:10]} 14. O-O {[%clk 0:02:17]}  Bd5 {[%clk 0:01:59]} 15. c6 {[%clk 0:02:13]}  e5 {[%clk 0:01:54]} 16. Rad1 {[%clk 0:02:04]}  Kg7 {[%clk 0:01:48]} 17. Rxd4 {[%clk 0:01:58]}  exf4 {[%clk 0:01:19]} 18. Rfd1 {[%clk 0:01:57]}  Rb8 {[%clk 0:01:19]} 19. Qa6 {[%clk 0:01:45]}  e3 {[%clk 0:00:20]} 20. Rxd5 {[%clk 0:01:34]}  Qh4 {[%clk 0:00:18]} 21. f3 {[%clk 0:01:25]}  Qf2+ {[%clk 0:00:17]} 22. Kh1 {[%clk 0:01:24]}  Rhe8 {[%clk 0:00:14]} 23. Be2 {[%clk 0:01:22]}  Rxb2 {[%clk 0:00:10]} 24. Rf1 {[%clk 0:01:08]}  Qxe2 {[%clk 0:00:08]} 25. Qxe2 {[%clk 0:01:07]}  Rxe2 {[%clk 0:00:09]} 26. h4 {[%clk 0:01:01]}  Rc2 {[%clk 0:00:09]} 27. Rd4 {[%clk 0:00:54]}  Rd2 {[%clk 0:00:09]} 28. Rc4 {[%clk 0:00:48]}  e2 {[%clk 0:00:09]} 29. Re1 {[%clk 0:00:47]}  Rd1 {[%clk 0:00:10]} 30. Rc1 {[%clk 0:00:47]}  Rxc1 {[%clk 0:00:10]} 31. Rxc1 {[%clk 0:00:45]}  e1=Q+ {[%clk 0:00:10]} 32. Rxe1 {[%clk 0:00:44]}  Rxe1+ {[%clk 0:00:11]} 33. Kh2 {[%clk 0:00:43]}  Rc1 {[%clk 0:00:12]} 0-1


[Site "https://www.chess.com"]

[Event "Titled Tuesday Blitz April 05 Early 2022"]
[White "Araujo Filho, Luiz Antonio Coel"]
[Black "Hernandez Bermudez, Ulises Eduardo"]
[WhiteFideId "2130661"]
[BlackFideId "3902510"]
[WhiteElo "2246"]
[BlackElo "2056"]
[Result "1-0"]
[Round "08"]
[TimeControl "180+1"]
[Date "2022.04.05"]
[WhiteClock "0:00:04"]
[BlackClock "0:00:03"]

1. d4 {[%clk 0:03:00]}  Nf6 {[%clk 0:02:59]} 2. Nf3 {[%clk 0:03:01]}  g6 {[%clk 0:02:56]} 3. c4 {[%clk 0:03:01]}  Bg7 {[%clk 0:02:56]} 4. Nc3 {[%clk 0:03:01]}  d6 {[%clk 0:02:56]} 5. e4 {[%clk 0:03:02]}  O-O {[%clk 0:02:56]} 6. Be2 {[%clk 0:03:02]}  e5 {[%clk 0:02:56]} 7. dxe5 {[%clk 0:03:03]}  dxe5 {[%clk 0:02:56]} 8. O-O {[%clk 0:03:04]}  Nc6 {[%clk 0:02:52]} 9. Bg5 {[%clk 0:03:03]}  Qxd1 {[%clk 0:02:43]} 10. Rfxd1 {[%clk 0:03:03]}  Be6 {[%clk 0:02:41]} 11. Nd5 {[%clk 0:02:51]}  Nxe4 {[%clk 0:02:08]} 12. Nxc7 {[%clk 0:02:51]}  Rac8 {[%clk 0:02:00]} 13. Nxe6 {[%clk 0:02:47]}  fxe6 {[%clk 0:02:01]} 14. Be3 {[%clk 0:02:30]}  Rfd8 {[%clk 0:01:55]} 15. Rxd8+ {[%clk 0:02:16]}  Rxd8 {[%clk 0:01:55]} 16. Rd1 {[%clk 0:02:16]}  Nd4 {[%clk 0:01:42]} 17. Kf1 {[%clk 0:01:56]}  Bf6 {[%clk 0:01:29]} 18. Bd3 {[%clk 0:01:54]}  Nxf3 {[%clk 0:01:14]} 19. gxf3 {[%clk 0:01:55]}  Ng5 {[%clk 0:01:10]} 20. Ke2 {[%clk 0:01:46]}  b6 {[%clk 0:01:10]} 21. Bc2 {[%clk 0:01:44]}  Rxd1 {[%clk 0:01:08]} 22. Bxd1 {[%clk 0:01:44]}  e4 {[%clk 0:00:51]} 23. f4 {[%clk 0:01:41]}  Nf3 {[%clk 0:00:50]} 24. Bc2 {[%clk 0:01:00]}  Bxb2 {[%clk 0:00:31]} 25. Bxe4 {[%clk 0:00:55]}  Nh4 {[%clk 0:00:20]} 26. c5 {[%clk 0:00:54]}  bxc5 {[%clk 0:00:18]} 27. Bxc5 {[%clk 0:00:55]}  a5 {[%clk 0:00:16]} 28. Kd3 {[%clk 0:00:52]}  Nf5 {[%clk 0:00:16]} 29. Kc4 {[%clk 0:00:46]}  Bc1 {[%clk 0:00:14]} 30. Bxf5 {[%clk 0:00:36]}  exf5 {[%clk 0:00:13]} 31. Be3 {[%clk 0:00:37]}  Ba3 {[%clk 0:00:12]} 32. Kb5 {[%clk 0:00:32]}  Bb4 {[%clk 0:00:12]} 33. a4 {[%clk 0:00:30]}  Kf7 {[%clk 0:00:11]} 34. Bb6 {[%clk 0:00:29]}  Bd2 {[%clk 0:00:10]} 35. Bxa5 {[%clk 0:00:25]}  Bxf4 {[%clk 0:00:09]} 36. Kc6 {[%clk 0:00:19]}  Bxh2 {[%clk 0:00:07]} 37. Bc7 {[%clk 0:00:18]}  Bg1 {[%clk 0:00:07]} 38. a5 {[%clk 0:00:09]}  Bxf2 {[%clk 0:00:07]} 39. Bb6 {[%clk 0:00:08]}  Bg3 {[%clk 0:00:07]} 40. a6 {[%clk 0:00:07]}  Bb8 {[%clk 0:00:06]} 41. Kb7 {[%clk 0:00:04]}  Be5 {[%clk 0:00:03]} 42. a7 {[%clk 0:00:04]} 1-0


[Site "https://www.chess.com"]

[Event "Titled Tuesday Blitz April 05 Early 2022"]
[White "Ardila, Oscar Humberto"]
[Black "Mogirzan, Matei-Valeriu"]
[WhiteFideId "4404742"]
[BlackFideId "1257455"]
[WhiteElo "1983"]
[BlackElo "1733"]
[Result "1-0"]
[Round "08"]
[TimeControl "180+1"]
[Date "2022.04.05"]
[WhiteClock "0:01:05"]
[BlackClock "0:01:46"]

1. d4 {[%clk 0:03:00]}  Nf6 {[%clk 0:02:58]} 2. c4 {[%clk 0:03:01]}  e5 {[%clk 0:02:55]} 3. Nc3 {[%clk 0:03:02]}  exd4 {[%clk 0:02:55]} 4. Qxd4 {[%clk 0:02:59]}  Nc6 {[%clk 0:02:56]} 5. Qd1 {[%clk 0:02:55]}  Bc5 {[%clk 0:02:55]} 6. e3 {[%clk 0:02:50]}  O-O {[%clk 0:02:54]} 7. Nf3 {[%clk 0:02:47]}  d6 {[%clk 0:02:54]} 8. Be2 {[%clk 0:02:46]}  Bf5 {[%clk 0:02:53]} 9. O-O {[%clk 0:02:45]}  Qd7 {[%clk 0:02:53]} 10. Nd4 {[%clk 0:02:40]}  Bg6 {[%clk 0:02:51]} 11. Bf3 {[%clk 0:02:38]}  Ne5 {[%clk 0:02:39]} 12. Bxb7 {[%clk 0:02:19]}  Rab8 {[%clk 0:02:38]} 13. Bd5 {[%clk 0:02:14]}  c6 {[%clk 0:02:34]} 14. Bf3 {[%clk 0:02:10]}  Nxc4 {[%clk 0:02:23]} 15. Nxc6 {[%clk 0:01:54]}  Rb6 {[%clk 0:02:14]} 16. Nd4 {[%clk 0:01:47]}  Nxb2 {[%clk 0:02:10]} 17. Bxb2 {[%clk 0:01:39]}  Rxb2 {[%clk 0:02:11]} 18. Na4 {[%clk 0:01:28]}  Rbb8 {[%clk 0:02:05]} 19. Nc6 {[%clk 0:01:18]}  Rbc8 {[%clk 0:02:01]} 20. Nxc5 {[%clk 0:01:17]}  Qc7 {[%clk 0:01:50]} 21. Na6 {[%clk 0:01:06]}  Qb6 {[%clk 0:01:46]} 22. Ne7+ {[%clk 0:01:05]} 1-0


[Site "https://www.chess.com"]

[Event "Titled Tuesday Blitz April 05 Early 2022"]
[White "Baches Garcia, Guillermo"]
[Black "Domingo Nunez, Alejandro"]
[WhiteFideId "2209764"]
[BlackFideId "22245561"]
[WhiteElo "2481"]
[BlackElo "2215"]
[Result "1-0"]
[Round "08"]
[TimeControl "180+1"]
[Date "2022.04.05"]
[WhiteClock "0:00:13"]
[BlackClock "0:00:50"]

1. e4 {[%clk 0:03:00]}  g6 {[%clk 0:03:00]} 2. d4 {[%clk 0:03:00]}  Bg7 {[%clk 0:03:01]} 3. Be3 {[%clk 0:03:00]}  c6 {[%clk 0:03:01]} 4. Nc3 {[%clk 0:03:00]}  d5 {[%clk 0:03:02]} 5. e5 {[%clk 0:03:01]}  f6 {[%clk 0:03:02]} 6. f4 {[%clk 0:02:55]}  fxe5 {[%clk 0:03:03]} 7. dxe5 {[%clk 0:02:49]}  Nh6 {[%clk 0:03:03]} 8. Nf3 {[%clk 0:02:45]}  O-O {[%clk 0:03:02]} 9. Qd2 {[%clk 0:02:41]}  Bg4 {[%clk 0:03:02]} 10. Be2 {[%clk 0:02:40]}  e6 {[%clk 0:02:56]} 11. O-O-O {[%clk 0:02:33]}  Qa5 {[%clk 0:02:09]} 12. Ng5 {[%clk 0:02:24]}  Bxe2 {[%clk 0:02:08]} 13. Qxe2 {[%clk 0:02:04]}  Re8 {[%clk 0:02:08]} 14. Kb1 {[%clk 0:01:45]}  b5 {[%clk 0:02:07]} 15. Qd3 {[%clk 0:01:31]}  b4 {[%clk 0:01:49]} 16. Ne2 {[%clk 0:01:31]}  Nd7 {[%clk 0:01:22]} 17. Nd4 {[%clk 0:01:24]}  Nc5 {[%clk 0:01:22]} 18. Nxc6 {[%clk 0:01:12]}  Qb6 {[%clk 0:01:22]} 19. Bxc5 {[%clk 0:01:00]}  Qxc5 {[%clk 0:01:22]} 20. Nd4 {[%clk 0:00:57]}  Qb6 {[%clk 0:01:22]} 21. h4 {[%clk 0:00:49]}  Nf5 {[%clk 0:01:18]} 22. Nxf5 {[%clk 0:00:28]}  gxf5 {[%clk 0:01:18]} 23. Nf3 {[%clk 0:00:25]}  Bh6 {[%clk 0:01:10]} 24. Ng5 {[%clk 0:00:21]}  Bg7 {[%clk 0:01:07]} 25. Rdg1 {[%clk 0:00:20]}  Qf2 {[%clk 0:00:54]} 26. g4 {[%clk 0:00:19]}  Qxf4 {[%clk 0:00:54]} 27. gxf5 {[%clk 0:00:17]}  Qxe5 {[%clk 0:00:55]} 28. f6 {[%clk 0:00:12]}  Qxf6 {[%clk 0:00:55]} 29. Qxh7+ {[%clk 0:00:12]}  Kf8 {[%clk 0:00:55]} 30. Rf1 {[%clk 0:00:13]}  Re7 {[%clk 0:00:52]} 31. Rxf6+ {[%clk 0:00:13]}  Bxf6 {[%clk 0:00:53]} 32. Qg6 {[%clk 0:00:13]}  Bxg5 {[%clk 0:00:50]} 33. Rf1+ {[%clk 0:00:13]} 1-0


[Site "https://www.chess.com"]

[Event "Titled Tuesday Blitz April 05 Early 2022"]
[White "Biletskiy, Danylo"]
[Black "Petrova, Irina"]
[WhiteFideId "14155419"]
[BlackFideId "14124122"]
[WhiteElo "2087"]
[BlackElo "1993"]
[Result "1-0"]
[Round "08"]
[TimeControl "180+1"]
[Date "2022.04.05"]
[WhiteClock "0:01:19"]
[BlackClock "0:00:06"]

1. e4 {[%clk 0:03:00]}  d6 {[%clk 0:03:00]} 2. d4 {[%clk 0:03:00]}  Nf6 {[%clk 0:03:01]} 3. Nc3 {[%clk 0:02:59]}  e5 {[%clk 0:03:01]} 4. dxe5 {[%clk 0:02:59]}  dxe5 {[%clk 0:03:02]} 5. Qxd8+ {[%clk 0:02:59]}  Kxd8 {[%clk 0:03:03]} 6. Bg5 {[%clk 0:02:58]}  Be6 {[%clk 0:03:02]} 7. O-O-O+ {[%clk 0:02:59]}  Nd7 {[%clk 0:03:02]} 8. f4 {[%clk 0:02:55]}  exf4 {[%clk 0:02:59]} 9. e5 {[%clk 0:02:55]}  h6 {[%clk 0:02:59]} 10. Bxf6+ {[%clk 0:02:48]}  gxf6 {[%clk 0:02:56]} 11. exf6 {[%clk 0:02:48]}  Bc5 {[%clk 0:02:24]} 12. Bb5 {[%clk 0:02:41]}  c6 {[%clk 0:02:23]} 13. Ba4 {[%clk 0:02:40]}  Kc7 {[%clk 0:02:20]} 14. Nge2 {[%clk 0:02:39]}  Nxf6 {[%clk 0:02:14]} 15. Rhf1 {[%clk 0:02:34]}  Ng4 {[%clk 0:02:12]} 16. Nxf4 {[%clk 0:02:20]}  Bc4 {[%clk 0:02:00]} 17. Nd3 {[%clk 0:02:16]}  Ne3 {[%clk 0:01:35]} 18. Nxc5 {[%clk 0:02:10]}  Nxf1 {[%clk 0:01:34]} 19. Rd7+ {[%clk 0:02:06]}  Kc8 {[%clk 0:01:33]} 20. Rxb7 {[%clk 0:02:01]}  Re8 {[%clk 0:01:23]} 21. b3 {[%clk 0:01:58]}  Re1+ {[%clk 0:01:15]} 22. Kb2 {[%clk 0:01:58]}  Be6 {[%clk 0:01:08]} 23. Bxc6 {[%clk 0:01:56]}  Rb8 {[%clk 0:00:59]} 24. Rxa7 {[%clk 0:01:49]}  Nd2 {[%clk 0:00:59]} 25. Nb5 {[%clk 0:01:39]}  Kd8 {[%clk 0:00:12]} 26. Nd6 {[%clk 0:01:33]}  Bg4 {[%clk 0:00:07]} 27. Nxf7+ {[%clk 0:01:29]}  Kc8 {[%clk 0:00:06]} 28. Bd7+ {[%clk 0:01:19]} 1-0


[Site "https://www.chess.com"]

[Event "Titled Tuesday Blitz April 05 Early 2022"]
[White "Chernov, Mikhail"]
[Black "Tan, Jun Ying"]
[WhiteFideId "24143170"]
[BlackFideId "5710413"]
[WhiteElo "2189"]
[BlackElo "1827"]
[Result "1-0"]
[Round "08"]
[TimeControl "180+1"]
[Date "2022.04.05"]
[WhiteClock "0:00:07"]
[BlackClock "0:00:13"]

1. d4 {[%clk 0:03:00]}  g6 {[%clk 0:02:57]} 2. e4 {[%clk 0:03:00]}  Bg7 {[%clk 0:02:58]} 3. Nc3 {[%clk 0:03:01]}  a6 {[%clk 0:02:58]} 4. Be3 {[%clk 0:03:01]}  b5 {[%clk 0:02:57]} 5. Qd2 {[%clk 0:03:01]}  Bb7 {[%clk 0:02:57]} 6. Bd3 {[%clk 0:03:00]}  d6 {[%clk 0:02:57]} 7. a4 {[%clk 0:03:00]}  b4 {[%clk 0:02:57]} 8. Nd1 {[%clk 0:03:01]}  a5 {[%clk 0:02:53]} 9. c3 {[%clk 0:03:01]}  Nf6 {[%clk 0:02:48]} 10. f3 {[%clk 0:03:02]}  bxc3 {[%clk 0:02:46]} 11. bxc3 {[%clk 0:03:02]}  Nbd7 {[%clk 0:02:45]} 12. Ne2 {[%clk 0:03:03]}  O-O {[%clk 0:02:34]} 13. O-O {[%clk 0:03:04]}  c5 {[%clk 0:02:31]} 14. Bh6 {[%clk 0:03:02]}  cxd4 {[%clk 0:02:26]} 15. cxd4 {[%clk 0:03:03]}  Nb6 {[%clk 0:02:26]} 16. Bxg7 {[%clk 0:03:03]}  Kxg7 {[%clk 0:02:26]} 17. Rb1 {[%clk 0:02:53]}  Ba6 {[%clk 0:02:22]} 18. Nf2 {[%clk 0:02:44]}  Nxa4 {[%clk 0:02:13]} 19. f4 {[%clk 0:02:37]}  Bxd3 {[%clk 0:02:08]} 20. Qxd3 {[%clk 0:02:38]}  Nd7 {[%clk 0:02:00]} 21. f5 {[%clk 0:02:33]}  gxf5 {[%clk 0:01:39]} 22. e5 {[%clk 0:02:08]}  dxe5 {[%clk 0:01:32]} 23. Qxf5 {[%clk 0:02:07]}  Ra6 {[%clk 0:01:29]} 24. dxe5 {[%clk 0:02:05]}  Ndc5 {[%clk 0:01:17]} 25. Nf4 {[%clk 0:01:53]}  Kh8 {[%clk 0:01:14]} 26. Ng4 {[%clk 0:01:30]}  Qc8 {[%clk 0:01:09]} 27. Qxc8 {[%clk 0:01:18]}  Rxc8 {[%clk 0:01:08]} 28. Nd5 {[%clk 0:01:19]}  Rg8 {[%clk 0:00:53]} 29. Nh6 {[%clk 0:01:04]}  Rxh6 {[%clk 0:00:52]} 30. Nxe7 {[%clk 0:01:01]}  Rf8 {[%clk 0:00:50]} 31. Rb5 {[%clk 0:00:41]}  Re6 {[%clk 0:00:47]} 32. Nf5 {[%clk 0:00:36]}  Rxe5 {[%clk 0:00:44]} 33. Rxa5 {[%clk 0:00:36]}  f6 {[%clk 0:00:38]} 34. Nd6 {[%clk 0:00:31]}  Re7 {[%clk 0:00:32]} 35. Nc4 {[%clk 0:00:26]}  f5 {[%clk 0:00:23]} 36. Nd6 {[%clk 0:00:24]}  f4 {[%clk 0:00:22]} 37. Rb5 {[%clk 0:00:24]}  Nd3 {[%clk 0:00:12]} 38. Rd5 {[%clk 0:00:21]}  Ne5 {[%clk 0:00:07]} 39. Rd4 {[%clk 0:00:19]}  Ng6 {[%clk 0:00:07]} 40. Rxa4 {[%clk 0:00:18]}  Re6 {[%clk 0:00:06]} 41. Ne4 {[%clk 0:00:12]}  Kg7 {[%clk 0:00:07]} 42. Ng5 {[%clk 0:00:12]}  Re2 {[%clk 0:00:05]} 43. Nh3 {[%clk 0:00:10]}  Kh6 {[%clk 0:00:04]} 44. Nxf4 {[%clk 0:00:10]}  Nxf4 {[%clk 0:00:04]} 45. Raxf4 {[%clk 0:00:11]}  Rg8 {[%clk 0:00:04]} 46. R4f2 {[%clk 0:00:11]}  Re6 {[%clk 0:00:03]} 47. Rf6+ {[%clk 0:00:11]}  Rxf6 {[%clk 0:00:04]} 48. Rxf6+ {[%clk 0:00:12]}  Kh5 {[%clk 0:00:05]} 49. Rf3 {[%clk 0:00:12]}  Rc8 {[%clk 0:00:03]} 50. h3 {[%clk 0:00:13]}  Kg6 {[%clk 0:00:04]} 51. Kh2 {[%clk 0:00:13]}  Kh6 {[%clk 0:00:04]} 52. Rf6+ {[%clk 0:00:13]}  Kg7 {[%clk 0:00:04]} 53. Ra6 {[%clk 0:00:14]}  Rb8 {[%clk 0:00:05]} 54. h4 {[%clk 0:00:13]}  Rb4 {[%clk 0:00:05]} 55. Kh3 {[%clk 0:00:13]}  Rb3+ {[%clk 0:00:05]} 56. g3 {[%clk 0:00:14]}  Rb1 {[%clk 0:00:06]} 57. Ra7+ {[%clk 0:00:14]}  Kg6 {[%clk 0:00:06]} 58. Ra6+ {[%clk 0:00:15]}  Kg7 {[%clk 0:00:06]} 59. Kg4 {[%clk 0:00:15]}  Rb4+ {[%clk 0:00:07]} 60. Kh3 {[%clk 0:00:14]}  Rb5 {[%clk 0:00:07]} 61. Re6 {[%clk 0:00:12]}  Rb3 {[%clk 0:00:07]} 62. h5 {[%clk 0:00:12]}  Rb4 {[%clk 0:00:08]} 63. g4 {[%clk 0:00:12]}  Rb3+ {[%clk 0:00:08]} 64. Kh4 {[%clk 0:00:12]}  h6 {[%clk 0:00:08]} 65. Rg6+ {[%clk 0:00:12]}  Kh7 {[%clk 0:00:08]} 66. Rd6 {[%clk 0:00:10]}  Rb1 {[%clk 0:00:08]} 67. Rd7+ {[%clk 0:00:10]}  Kg8 {[%clk 0:00:09]} 68. Re7 {[%clk 0:00:08]}  Rh1+ {[%clk 0:00:08]} 69. Kg3 {[%clk 0:00:09]}  Rg1+ {[%clk 0:00:09]} 70. Kf4 {[%clk 0:00:09]}  Rf1+ {[%clk 0:00:09]} 71. Ke5 {[%clk 0:00:08]}  Rg1 {[%clk 0:00:09]} 72. Kf5 {[%clk 0:00:09]}  Kh8 {[%clk 0:00:08]} 73. Re8+ {[%clk 0:00:06]}  Kg7 {[%clk 0:00:08]} 74. Re7+ {[%clk 0:00:07]}  Kf8 {[%clk 0:00:08]} 75. Rh7 {[%clk 0:00:07]}  Kg8 {[%clk 0:00:06]} 76. Rxh6 {[%clk 0:00:07]}  Kg7 {[%clk 0:00:07]} 77. Rg6+ {[%clk 0:00:07]}  Kh7 {[%clk 0:00:07]} 78. Kg5 {[%clk 0:00:07]}  Ra1 {[%clk 0:00:07]} 79. Rf6 {[%clk 0:00:08]}  Ra5+ {[%clk 0:00:07]} 80. Rf5 {[%clk 0:00:08]}  Ra7 {[%clk 0:00:07]} 81. Rb5 {[%clk 0:00:08]}  Rg7+ {[%clk 0:00:08]} 82. Kh4 {[%clk 0:00:08]}  Rc7 {[%clk 0:00:08]} 83. Rb6 {[%clk 0:00:06]}  Rc3 {[%clk 0:00:08]} 84. g5 {[%clk 0:00:05]}  Kg8 {[%clk 0:00:09]} 85. h6 {[%clk 0:00:05]}  Rc1 {[%clk 0:00:09]} 86. Kh5 {[%clk 0:00:05]}  Rc5 {[%clk 0:00:09]} 87. Kg6 {[%clk 0:00:05]}  Rc8 {[%clk 0:00:09]} 88. Rf6 {[%clk 0:00:04]}  Kh8 {[%clk 0:00:09]} 89. Re6 {[%clk 0:00:03]}  Rb8 {[%clk 0:00:10]} 90. Kf7 {[%clk 0:00:03]}  Kh7 {[%clk 0:00:10]} 91. Kf6 {[%clk 0:00:02]}  Rf8+ {[%clk 0:00:09]} 92. Ke5 {[%clk 0:00:02]}  Rg8 {[%clk 0:00:09]} 93. Kf5 {[%clk 0:00:02]}  Rf8+ {[%clk 0:00:10]} 94. Rf6 {[%clk 0:00:03]}  Rg8 {[%clk 0:00:10]} 95. Kg4 {[%clk 0:00:03]}  Kh8 {[%clk 0:00:10]} 96. Kh5 {[%clk 0:00:04]}  Kh7 {[%clk 0:00:10]} 97. g6+ {[%clk 0:00:04]}  Kh8 {[%clk 0:00:11]} 98. g7+ {[%clk 0:00:03]}  Kh7 {[%clk 0:00:11]} 99. Rf8 {[%clk 0:00:04]}  Rxg7 {[%clk 0:00:10]} 100. hxg7 {[%clk 0:00:04]}  Kxg7 {[%clk 0:00:11]} 101. Rc8 {[%clk 0:00:05]}  Kf7 {[%clk 0:00:11]} 102. Rc5 {[%clk 0:00:06]}  Ke6 {[%clk 0:00:12]} 103. Rg5 {[%clk 0:00:06]}  Kd6 {[%clk 0:00:12]} 104. Kg6 {[%clk 0:00:07]}  Kc6 {[%clk 0:00:13]} 105. Kf6 {[%clk 0:00:07]} 1-0


[Site "https://www.chess.com"]